bitfinex-derivatives/quotes_SOLF0:USTF0_20250311
["timestamp","ask_amount","ask_price","bid_price","bid_amount"]
[1741725317886,18.68751082,127.16,127.12,31.7]
[1741725318081,18.68751082,127.16,127.12,33.8251]
[1741725318289,10.82071082,127.16,127.13,0.05627522]
[1741725318584,7.8669,127.15,127.13,0.05627522]
[1741725318978,10.82071082,127.16,127.13,0.05627522]
[1741725319584,7.8674,127.15,127.13,0.05627522]
[1741725319985,10.82071082,127.16,127.13,0.05627522]
[1741725320191,7.8673,127.15,127.13,0.05627522]
[1741725320488,10.82071082,127.16,127.13,0.05627522]
[1741725320690,7.56241082,127.16,127.13,0.05627522]
[1741725320895,7.56241082,127.16,127.13,7.92387522]
[1741725321082,268.83922512,127.2,127.13,7.92387522]
[1741725321083,18.04418797,127.23,127.13,0.05627522]
[1741725321286,7.8661,127.17,127.13,0.05627522]
[1741725321483,7.8661,127.17,127.12,59.73768797]
[1741725321683,7.8661,127.17,127.14,0.05832776]
[1741725321887,7.8653,127.18,127.15,31.68]
[1741725322287,7.8653,127.18,127.15,31.73494291]
[1741725322488,18.04418797,127.23,127.15,31.73494291]
[1741725322785,18.04418797,127.23,127.15,31.68]
[1741725322983,18.04418797,127.21,127.18,0.059317]
[1741725325895,7.8644,127.19,127.18,0.059317]
[1741725326092,18.04418797,127.21,127.18,0.059317]
[1741725326397,7.8641,127.2,127.18,31.719317]
[1741725326700,18.04418797,127.23,127.18,31.719317]
[1741725326996,7.863,127.22,127.18,31.719317]
[1741725327197,18.04418797,127.25,127.18,31.719317]
[1741725327398,18.04418797,127.25,127.19,1.987]
[1741725327699,7.8623,127.23,127.19,1.987]
[1741725327898,18.04418797,127.25,127.21,0.05613174]
[1741725328197,7.8623,127.23,127.21,0.05613174]
[1741725328795,7.8626,127.22,127.21,0.05613174]
[1741725329193,18.04418797,127.23,127.15,33.647]
[1741725329393,309.34418797,127.25,127.15,33.647]
[1741725329394,18.04418797,127.2,127.15,33.647]
[1741725329591,18.04418797,127.2,127.1,18.04418797]
[1741725329794,18.04418797,127.18,127.11,31.66]
[1741725329988,7.8672,127.15,127.11,31.66]
[1741725330194,18.04418797,127.18,127.11,31.66]
[1741725330390,0.05686454,127.14,127.12,0.05285743]
[1741725330905,7.8681,127.13,127.12,0.05285743]
[1741725333802,7.92446454,127.14,127.12,0.05285743]
[1741725334000,0.05686454,127.14,127.12,0.05285743]
[1741725335812,0.05686454,127.14,127.12,31.69285743]
[1741725336309,2.0115,127.19,127.12,31.69285743]
[1741725336505,18.04418797,127.22,127.14,18.04418797]
[1741725336707,7.8641,127.2,127.15,39.5063]
[1741725336907,243.64098797,127.24,127.15,39.5063]
[1741725337108,7.8643,127.2,127.15,39.5063]
[1741725337309,7.8643,127.2,127.18,0.05238682]
[1741725337509,243.64098797,127.24,127.18,0.05238682]
[1741725337709,7.8644,127.19,127.18,0.05238682]
[1741725338506,7.8639,127.2,127.18,0.05238682]
[1741725338806,18.04418797,127.22,127.18,0.05238682]
[1741725340215,261.5981,127.25,127.18,0.05238682]
[1741725340415,279.64228797,127.25,127.18,0.05238682]
[1741725340713,279.64228797,127.25,127.18,31.69238682]
[1741725342118,7.8626,127.22,127.18,31.69238682]
[1741725342714,7.8616,127.24,127.19,7.864]
[1741725343111,7.8616,127.24,127.2,0.05903328]
[1741725343318,7.8629,127.22,127.2,0.05903328]
[1741725344919,261.5981,127.25,127.2,0.05903328]
[1741725345114,259.64,127.25,127.2,0.05903328]
[1741725345324,259.64,127.25,127.21,31.62]
[1741725345523,7.8626,127.22,127.21,31.62]
[1741725345821,288.48111081,127.25,127.2,0.05903328]
[1741725346025,7.8632,127.21,127.2,0.05903328]
[1741725346523,4.1248,127.24,127.2,0.05903328]
[1741725346724,7.863,127.22,127.2,0.05903328]
[1741725347023,4.1248,127.24,127.2,0.05903328]
[1741725347322,7.8616,127.24,127.2,0.05903328]
[1741725347917,7.8616,127.24,127.21,31.62]
[1741725348325,7.862,127.23,127.21,31.62]
[1741725348724,192.0,127.27,127.21,31.67318109]
[1741725349025,7.8626,127.22,127.21,31.67318109]
[1741725351326,192.0,127.27,127.21,31.67318109]
[1741725351626,4.1248,127.28,127.21,31.67318109]
[1741725351825,28.84111081,127.27,127.21,31.67318109]
[1741725352732,4.1248,127.28,127.21,31.67318109]
[1741725354330,28.84111081,127.27,127.21,31.67318109]
[1741725354527,28.84111081,127.27,127.21,0.05318109]
[1741725357730,7.8626,127.22,127.21,0.05318109]
[1741725360735,7.8626,127.22,127.16,33.5663]
[1741725360736,60.44111081,127.22,127.14,31.6]
[1741725360934,60.44111081,127.22,127.13,4.1811]
[1741725361133,2.0547,127.21,127.13,33.6377]
[1741725361536,2.0547,127.21,127.13,41.5054]
[1741725361936,7.8656,127.17,127.16,0.05788008]
[1741725362232,0.05397098,127.18,127.1,2.1226]
[1741725362434,7.8687,127.12,127.1,2.1226]
[1741725362734,18.04900222,127.15,127.07,35.746]
[1741725363240,31.6,127.16,127.09,7.8702]
[1741725363438,0.0597789,127.12,127.1,0.05310326]
[1741725364737,0.0597789,127.12,127.1,31.65310326]
[1741725365036,0.0597789,127.12,127.1,49.70210548]
[1741725365432,0.0597789,127.12,127.11,7.8694]
[1741725365740,31.6,127.19,127.1,49.70210548]
[1741725365933,7.8663,127.16,127.12,18.04900222]
[1741725366139,7.8663,127.16,127.13,31.6]
[1741725366339,31.6,127.19,127.13,31.6]
[1741725366542,7.8675,127.14,127.13,31.6]
[1741725366944,7.8664,127.16,127.13,31.6]
[1741725367236,0.05417685,127.17,127.13,31.6]
[1741725368040,7.8679,127.14,127.12,0.05636985]
[1741725368442,0.05417685,127.14,127.12,0.05636985]
[1741725370548,2.0547,127.21,127.13,49.64900222]
[1741725370751,17.10922951,127.22,127.13,49.64900222]
[1741725370941,18.04900222,127.21,127.13,57.51670222]
[1741725371143,22.21650222,127.21,127.13,39.4677]
[1741725371343,22.21650222,127.21,127.13,31.6]
[1741725371846,22.21650222,127.21,127.16,0.05094602]
[1741725372047,53.81650222,127.21,127.16,0.05094602]
[1741725372247,7.8654,127.18,127.16,0.05094602]
[1741725372449,53.81650222,127.21,127.16,0.05094602]
[1741725374557,7.8656,127.17,127.16,0.05094602]
[1741725375055,53.81650222,127.21,127.16,0.05094602]
[1741725375849,7.8648,127.19,127.16,0.05094602]
[1741725376350,7.8639,127.2,127.16,0.05094602]
[1741725376853,31.6,127.21,127.16,0.05094602]
[1741725377154,49.64900222,127.21,127.16,0.05094602]
[1741725377353,7.8653,127.18,127.16,0.05094602]
[1741725377951,7.8656,127.17,127.16,0.05094602]
[1741725378852,49.64900222,127.21,127.16,0.05094602]
[1741725379252,18.04900222,127.19,127.16,0.05094602]
[1741725379456,18.04900222,127.17,127.08,2.0254]
[1741725379653,18.04900222,127.15,127.08,31.58]
[1741725380649,7.8699,127.11,127.1,0.06050709]
[1741725381054,7.8699,127.11,127.1,7.09e-06]
[1741725381055,25.91890222,127.11,127.1,7.09e-06]
[1741725381256,57.49890222,127.11,127.1,7.09e-06]
[1741725381552,0.05094602,127.13,127.1,7.09e-06]
[1741725382145,7.8694,127.11,127.1,7.09e-06]
[1741725382956,7.91934602,127.13,127.1,7.09e-06]
[1741725383254,0.05094602,127.13,127.1,7.09e-06]
[1741725383458,7.91944602,127.13,127.1,7.09e-06]
[1741725383752,0.05094602,127.13,127.1,7.09e-06]
[1741725384156,7.8687,127.12,127.1,7.09e-06]
[1741725384351,0.05094602,127.13,127.1,7.09e-06]
[1741725385058,7.8691,127.12,127.1,7.09e-06]
[1741725385558,0.05094602,127.13,127.1,7.09e-06]
[1741725385751,7.8694,127.11,127.1,7.09e-06]
[1741725385951,0.05094602,127.13,127.1,7.09e-06]
[1741725386147,7.8694,127.11,127.1,7.09e-06]
[1741725387657,7.91914602,127.13,127.1,7.09e-06]
[1741725388546,7.8694,127.11,127.1,7.09e-06]
[1741725388948,7.8691,127.12,127.1,7.09e-06]
[1741725389153,0.05094602,127.13,127.1,7.09e-06]
[1741725390157,7.8694,127.11,127.1,7.09e-06]
[1741725390852,0.05094602,127.13,127.1,7.09e-06]
[1741725392359,7.8694,127.11,127.1,7.09e-06]
[1741725393662,0.05094602,127.13,127.1,7.09e-06]
[1741725394158,7.8694,127.11,127.1,7.09e-06]
[1741725394360,0.05094602,127.13,127.1,7.09e-06]
[1741725394764,7.869,127.12,127.1,7.09e-06]
[1741725395161,0.05094602,127.13,127.1,7.09e-06]
[1741725395764,0.05094602,127.13,127.1,7.86970709]
[1741725396060,0.05094602,127.13,127.1,7.09e-06]
[1741725396462,0.05094602,127.13,127.11,7.8694]
[1741725397262,0.05094602,127.13,127.1,7.86970709]
[1741725397469,0.05094602,127.13,127.1,7.09e-06]
[1741725398467,7.91924602,127.13,127.1,7.09e-06]
[1741725398769,0.05094602,127.13,127.1,7.09e-06]
[1741725398961,7.91934602,127.13,127.1,7.09e-06]
[1741725399156,0.05094602,127.13,127.1,7.09e-06]
[1741725399772,0.05094602,127.13,127.1,7.86960709]
[1741725400466,0.05094602,127.13,127.1,7.09e-06]
[1741725401664,7.91944602,127.13,127.1,7.09e-06]
[1741725402066,0.05094602,127.13,127.1,7.09e-06]
[1741725402659,7.91954602,127.13,127.1,7.09e-06]
[1741725402863,0.05094602,127.13,127.1,7.09e-06]
[1741725403169,7.8687,127.12,127.1,7.09e-06]
[1741725403470,0.05094602,127.13,127.1,7.09e-06]
[1741725404470,7.8694,127.11,127.1,7.09e-06]
[1741725407077,33.94,127.11,127.03,2.116]
[1741725407373,18.05693929,127.08,127.03,2.116]
[1741725407773,7.8737,127.04,127.03,2.116]
[1741725407971,7.8737,127.04,127.02,31.58]
[1741725408274,7.8737,127.04,127.02,31.63597731]
[1741725408774,7.8737,127.04,127.02,0.05597731]
[1741725409170,7.8743,127.03,127.02,0.05597731]
[1741725409368,18.05693929,127.04,126.96,153.35211347]
[1741725409572,18.05693929,127.02,126.96,66.18205888]
[1741725409976,18.05693929,127.02,126.96,34.60205888]
[1741725410174,18.05693929,127.0,126.96,34.60205888]
[1741725410368,7.8775,126.98,126.96,34.60205888]
[1741725410577,29.01439749,126.99,126.97,0.05636617]
[1741725411171,0.05897795,126.99,126.97,0.05636617]
[1741725412169,7.8774,126.98,126.97,0.05636617]
[1741725412374,0.05897795,126.99,126.97,0.05636617]
[1741725414677,7.8774,126.98,126.97,0.05636617]
[1741725416276,7.93617795,126.99,126.97,0.05636617]
[1741725416984,7.8774,126.98,126.97,0.05636617]
[1741725420079,7.8774,126.98,126.97,0.01196653]
[1741725420880,7.8809,126.93,126.91,2.081]
[1741725421073,60.55541954,126.98,126.9,31.6]
[1741725421278,60.55541954,126.98,126.89,31.6]
[1741725422179,7.8805,126.93,126.92,0.05998819]
[1741725422678,29.01124556,126.95,126.92,0.05998819]
[1741725422877,0.05582602,126.95,126.92,0.05998819]
[1741725423379,7.8805,126.93,126.92,0.05998819]
[1741725424078,7.8802,126.94,126.92,0.05998819]
[1741725424381,0.05582602,126.95,126.92,0.05998819]
[1741725424382,7.8805,126.93,126.92,0.05998819]
[1741725424577,0.05582602,126.95,126.85,4.116]
[1741725424578,28.95541954,126.94,126.85,35.736]
[1741725424777,28.95541954,126.92,126.85,4.116]
[1741725424976,7.8832,126.89,126.85,12.0014]
[1741725425576,60.57541954,126.92,126.85,12.0014]
[1741725425782,0.05137257,126.88,126.86,0.05938107]
[1741725426872,7.8842,126.87,126.86,0.05938107]
[1741725435477,26.00972651,126.87,126.86,8.107e-05]
[1741725436383,7.8872,126.83,126.79,7.8889]
[1741725436583,18.12552651,126.83,126.78,1.9692]
[1741725437484,0.06041495,126.82,126.79,0.05058691]
[1741725437880,18.12552651,126.89,126.79,0.05058691]
[1741725438086,20.26842651,126.91,126.82,18.12552651]
[1741725438384,7.8838,126.88,126.83,33.7646]
[1741725438586,2.1746,126.94,126.83,35.8992]
[1741725438886,7.8827,126.9,126.85,7.8853]
[1741725439092,0.05660059,126.9,126.87,0.060047]
[1741725439885,7.93930059,126.9,126.87,0.060047]
[1741725440087,0.05660059,126.9,126.87,0.060047]
[1741725441391,18.12552651,126.94,126.87,0.060047]
[1741725441783,7.8807,126.93,126.88,7.883]
[1741725441984,7.8807,126.93,126.89,31.62]
[1741725442184,18.12552651,126.94,126.89,31.62]
[1741725442394,7.8815,126.92,126.89,31.62]
[1741725442594,7.8815,126.92,126.9,0.0549063]
[1741725442795,0.06036397,126.93,126.9,0.0549063]
[1741725442991,18.12552651,126.92,126.9,0.0549063]
[1741725443397,7.8818,126.91,126.9,0.0549063]
[1741725443890,0.06036397,126.93,126.9,0.0549063]
[1741725444089,7.8815,126.92,126.9,0.0549063]
[1741725445293,0.06036397,126.93,126.9,0.0549063]
[1741725446401,7.8816,126.92,126.9,0.0549063]
[1741725446898,7.94116397,126.93,126.9,0.0549063]
[1741725447500,7.8815,126.92,126.9,0.0549063]
[1741725447699,0.06036397,126.93,126.9,0.0549063]
[1741725449501,28.97909918,126.92,126.9,0.0549063]
[1741725449804,7.8818,126.91,126.9,6.3e-06]
[1741725450000,28.97909918,126.92,126.83,31.62]
[1741725450194,28.97909918,126.89,126.83,31.62]
[1741725450397,28.97909918,126.91,126.84,7.8855]
[1741725450803,28.97909918,126.91,126.83,31.62]
[1741725451000,0.06038523,126.89,126.86,0.05979163]
[1741725451495,0.06038523,126.89,126.86,7.94409163]
[1741725451701,0.06038523,126.89,126.86,39.56409163]
[1741725452406,0.06038523,126.89,126.87,2.1396]
[1741725454705,7.8836,126.88,126.87,2.1396]
[1741725455303,7.94348523,126.89,126.87,2.1396]
[1741725456010,7.8836,126.88,126.87,2.1396]
[1741725456314,0.06038523,126.89,126.87,2.1396]
[1741725456709,60.59909918,126.93,126.87,2.1396]
[1741725456906,289.09909918,126.95,126.89,7.883]
[1741725457809,289.09909918,126.95,126.88,12.0657]
[1741725458112,0.05966974,126.93,126.91,0.05409655]
[1741725459011,7.94066974,126.93,126.91,0.05409655]
[1741725459517,7.8811,126.92,126.91,0.05409655]
[1741725461112,29.03876892,126.93,126.87,2.1396]
[1741725461411,28.97909918,126.91,126.84,31.62]
[1741725461612,7.8847,126.87,126.84,31.62]
[1741725462016,7.8847,126.87,126.84,33.6512]
[1741725462216,7.8847,126.87,126.84,41.5172]
[1741725462418,7.885,126.86,126.84,33.68573668]
[1741725464419,0.05558405,126.87,126.84,41.57173668]
[1741725464621,7.94018405,126.87,126.84,41.57173668]
[1741725465718,18.12464879,126.92,126.84,51.81038547]
[1741725465916,18.12464879,126.92,126.85,2.1579]
[1741725466111,7.8824,126.9,126.87,7.8839]
[1741725466316,18.12464879,126.92,126.87,31.6]
[1741725466521,18.12464879,126.93,126.87,31.6]
[1741725466816,0.05529382,126.91,126.87,31.6]
[1741725467319,0.05529382,126.91,126.88,0.05572284]
[1741725467721,7.8827,126.9,126.88,0.05572284]
[1741725467922,0.05529382,126.91,126.88,0.05572284]
[1741725468118,7.8828,126.9,126.88,0.05572284]
[1741725469219,7.93739382,126.91,126.88,7.93932284]
[1741725469525,0.05529382,126.91,126.88,0.05572284]
[1741725470622,7.93709382,126.91,126.88,7.93892284]
[1741725470823,7.93709382,126.91,126.88,0.05572284]
[1741725471020,7.8825,126.9,126.88,0.05572284]
[1741725472224,0.05529382,126.91,126.88,0.05572284]
[1741725472529,0.05529382,126.91,126.88,2.10062284]
[1741725474326,7.93739382,126.91,126.89,7.8827]
[1741725474823,0.05529382,126.91,126.88,2.10062284]
[1741725475024,0.05529382,126.91,126.9,7.8824]
[1741725475228,0.05529382,126.91,126.9,39.4824]
[1741725475827,0.05529382,126.91,126.9,31.6]
[1741725476526,24.03456587,126.98,126.9,31.6]
[1741725476527,17.26425668,126.98,126.9,31.6]
[1741725476724,18.12464879,126.95,126.9,31.6]
[1741725477421,18.12464879,126.93,126.9,31.6]
[1741725477626,18.12464879,126.93,126.91,0.05141127]
[1741725477828,7.8816,126.92,126.91,0.05141127]
[1741725478029,18.12464879,126.93,126.91,0.05141127]
[1741725479335,7.93193255,126.94,126.91,0.05141127]
[1741725479336,0.05173255,126.94,126.91,0.05141127]
[1741725479832,0.05173255,126.94,126.91,7.93261127]
[1741725480029,0.05173255,126.94,126.91,0.05141127]
[1741725480433,7.8808,126.93,126.91,0.05141127]
[1741725481129,0.05173255,126.94,126.91,7.93281127]
[1741725481636,0.05173255,126.94,126.92,7.8811]
[1741725481943,0.05173255,126.94,126.91,0.05141127]
[1741725482631,0.05173255,126.94,126.92,7.8809]
[1741725483135,0.05173255,126.94,126.91,0.05141127]
[1741725484330,0.05173255,126.94,126.93,7.8805]
[1741725484533,0.05173255,126.94,126.93,39.4805]
[1741725485030,0.05173255,126.94,126.93,31.6]
[1741725485229,7.93163255,126.94,126.93,31.6]
[1741725485834,0.05173255,126.94,126.93,31.6]
[1741725487237,7.93163255,126.94,126.93,31.6]
[1741725488028,7.8811,126.92,126.91,0.05141127]
[1741725488342,0.05173255,126.94,126.91,0.05141127]
[1741725488631,7.93213255,126.94,126.91,7.93301127]
[1741725488840,0.05173255,126.94,126.91,0.05141127]
[1741725489239,7.8811,126.92,126.91,0.05141127]
[1741725489739,0.05173255,126.94,126.91,0.05141127]
[1741725489941,7.93193255,126.94,126.91,0.05141127]
[1741725490141,0.05173255,126.94,126.91,0.05141127]
[1741725490438,7.8811,126.92,126.91,0.05141127]
[1741725491037,7.8809,126.93,126.91,0.05141127]
[1741725491243,0.05173255,126.94,126.91,0.05141127]
[1741725492135,0.05173255,126.94,126.92,31.58]
[1741725492438,0.05173255,126.94,126.92,39.4606]
[1741725493646,0.05173255,126.94,126.93,7.8805]
[1741725496240,0.05173255,126.94,126.92,33.6762]
[1741725496445,0.05173255,126.94,126.92,31.58]
[1741725497139,18.17638134,126.94,126.91,0.05141127]
[1741725498044,0.05173255,126.94,126.91,0.05141127]
[1741725499445,7.8809,126.93,126.91,0.05141127]
[1741725499746,0.05173255,126.94,126.91,0.05141127]
[1741725501045,18.17638134,126.94,126.91,0.05141127]
[1741725501237,18.12464879,126.92,126.85,33.6873]
[1741725501637,18.12464879,126.92,126.85,2.1073]
[1741725501638,49.70464879,126.92,126.85,2.1073]
[1741725502037,7.883,126.9,126.86,7.8848]
[1741725502448,0.05965088,126.89,126.87,0.05929721]
[1741725502748,0.05965088,126.89,126.87,7.94329721]
[1741725503147,0.05965088,126.89,126.87,0.05929721]
[1741725503945,7.8836,126.88,126.87,0.05929721]
[1741725504847,18.12464879,126.88,126.83,31.58]
[1741725505046,7.8854,126.86,126.83,31.58]
[1741725505944,7.8855,126.85,126.83,31.58]
[1741725506149,7.8855,126.85,126.83,31.63277284]
[1741725506545,7.8855,126.85,126.83,0.05277284]
[1741725506748,7.8861,126.84,126.83,0.05277284]
[1741725507846,7.8858,126.85,126.83,0.05277284]
[1741725509752,0.05224231,126.86,126.83,0.05277284]
[1741725509943,7.8861,126.84,126.83,0.05277284]
[1741725510852,0.05224231,126.86,126.83,0.05277284]
[1741725511052,7.8858,126.85,126.83,0.05277284]
[1741725512751,0.05224231,126.86,126.83,0.05277284]
[1741725512952,7.8861,126.84,126.83,0.05277284]
[1741725516551,0.05224231,126.86,126.83,0.05277284]
[1741725517253,7.93744231,126.86,126.83,7.93947284]
[1741725517552,7.93744231,126.86,126.83,0.05277284]
[1741725517853,0.05224231,126.86,126.83,31.63277284]
[1741725518850,7.886,126.85,126.83,31.63277284]
[1741725519456,7.8861,126.84,126.83,31.63277284]
[1741725520154,7.8861,126.84,126.83,0.05277284]
[1741725524063,7.8859,126.85,126.83,0.05277284]
[1741725524248,0.05224231,126.86,126.83,0.05277284]
[1741725524955,7.8861,126.84,126.83,0.05277284]
[1741725528766,0.05224231,126.86,126.83,0.05277284]
[1741725529572,7.8861,126.84,126.83,0.05277284]
[1741725531368,7.8861,126.84,126.83,7.284e-05]
[1741725531973,52.06464879,126.84,126.72,278.24464879]
[1741725532270,52.06464879,126.84,126.68,537.96870875]
[1741725532271,18.12464879,126.79,126.73,37.8199]
[1741725532467,7.8901,126.78,126.73,37.8199]
[1741725532770,18.12464879,126.79,126.73,37.8199]
[1741725532970,0.0567251,126.77,126.75,0.05348376]
[1741725533674,0.0567251,126.77,126.76,31.58]
[1741725533970,268.1077,126.82,126.76,31.58]
[1741725534171,268.1077,126.82,126.77,7.8903]
[1741725534375,7.888,126.81,126.77,7.8903]
[1741725534873,7.888,126.81,126.76,39.471]
[1741725535076,0.05882356,126.8,126.78,0.05949731]
[1741725535276,7.94772356,126.8,126.78,0.05949731]
[1741725535466,0.05882356,126.8,126.78,0.05949731]
[1741725535871,0.05882356,126.8,126.78,7.94899731]
[1741725536576,0.05882356,126.8,126.79,7.8892]
[1741725536876,18.12464879,126.85,126.79,31.58]
[1741725537079,7.8858,126.85,126.79,33.6629]
[1741725537276,192.0,126.86,126.79,33.6629]
[1741725537277,192.0,126.86,126.79,35.6374]
[1741725537482,20.13974879,126.87,126.79,35.6374]
[1741725537682,7.886,126.85,126.79,35.6374]
[1741725537975,0.05146466,126.84,126.82,0.05962432]
[1741725538176,7.93786466,126.84,126.82,0.05962432]
[1741725538378,0.05146466,126.84,126.82,0.05962432]
[1741725538881,7.93796466,126.84,126.82,0.05962432]
[1741725539577,0.05146466,126.84,126.82,0.05962432]
[1741725539780,0.05146466,126.84,126.82,31.63962432]
[1741725540486,0.05146466,126.84,126.82,39.52682432]
[1741725540779,0.05146466,126.84,126.82,31.63962432]
[1741725541782,0.05146466,126.84,126.83,7.8867]
[1741725544081,0.05146466,126.84,126.82,31.63962432]
[1741725544284,7.8867,126.83,126.82,31.63962432]
[1741725544580,0.05146466,126.84,126.82,31.63962432]
[1741725544778,7.8867,126.83,126.82,0.05962432]
[1741725545285,0.05146466,126.84,126.82,0.05962432]
[1741725545778,0.05146466,126.84,126.82,7.94672432]
[1741725547881,7.93806466,126.84,126.82,0.05962432]
[1741725548677,7.93806466,126.84,126.82,7.94692432]
[1741725548872,7.93806466,126.84,126.82,0.05962432]
[1741725549788,7.8867,126.83,126.82,0.05962432]
[1741725551787,7.93796466,126.84,126.82,0.05962432]
[1741725555190,0.05146466,126.84,126.82,0.05962432]
[1741725555691,0.05146466,126.84,126.83,7.8867]
[1741725555892,0.05146466,126.84,126.82,0.05962432]
[1741725556285,0.05146466,126.84,126.82,7.94642432]
[1741725557388,0.05146466,126.84,126.82,0.05962432]
[1741725557588,0.05146466,126.84,126.83,7.8867]
[1741725557790,0.05146466,126.84,126.83,39.4467]
[1741725558392,0.05146466,126.84,126.83,31.56]
[1741725561896,7.93756466,126.84,126.83,31.56]
[1741725562686,7.8867,126.83,126.82,0.05962432]
[1741725562893,19.48809072,126.83,126.82,0.05962432]
[1741725564293,11.60139072,126.83,126.82,0.05962432]
[1741725564500,7.93796466,126.84,126.82,0.05962432]
[1741725564695,0.05146466,126.84,126.82,0.05962432]
[1741725565090,7.8867,126.83,126.82,0.05962432]
[1741725568295,26.01943129,126.83,126.82,2.432e-05]
[1741725570900,18.13273129,126.83,126.76,2.0095]
[1741725571105,18.13273129,126.8,126.75,2.1185]
[1741725571295,18.13273129,126.8,126.75,33.6585]
[1741725572007,18.13273129,126.8,126.75,41.5502]
[1741725572202,7.94564453,126.79,126.76,0.05318703]
[1741725572400,0.05584453,126.79,126.76,0.05318703]
[1741725572602,0.05584453,126.79,126.77,7.89]
[1741725572905,0.05584453,126.79,126.76,0.05318703]
[1741725573106,0.05584453,126.79,126.76,7.94398703]
[1741725573804,7.94514453,126.79,126.76,7.94398703]
[1741725574006,0.05584453,126.79,126.76,7.94398703]
[1741725574203,0.05584453,126.79,126.76,0.05318703]
[1741725574602,0.05584453,126.79,126.77,7.8901]
[1741725575005,0.05584453,126.79,126.76,0.05318703]
[1741725575204,0.05584453,126.79,126.76,7.94398703]
[1741725575503,0.05584453,126.79,126.76,0.05318703]
[1741725576107,7.94514453,126.79,126.76,0.05318703]
[1741725576307,0.05584453,126.79,126.76,0.05318703]
[1741725576712,0.05584453,126.79,126.77,7.8902]
[1741725577209,7.94534453,126.79,126.76,7.94388703]
[1741725577802,7.94534453,126.79,126.77,7.8903]
[1741725578000,0.05584453,126.79,126.76,0.05318703]
[1741725578309,0.05584453,126.79,126.76,2.18408703]
[1741725578504,0.05584453,126.79,126.78,7.8898]
[1741725578708,18.13273129,126.84,126.78,31.54]
[1741725579912,7.8892,126.79,126.78,31.54]
[1741725580601,18.18927647,126.82,126.78,31.54]
[1741725580808,7.8889,126.8,126.78,31.54]
[1741725581008,18.18927647,126.82,126.78,39.4295]
[1741725581319,18.18927647,126.82,126.77,2.07379781]
[1741725581807,7.8898,126.78,126.77,2.07379781]
[1741725582209,0.05382823,126.79,126.77,2.07379781]
[1741725583217,0.05382823,126.79,126.78,7.8898]
[1741725584813,0.05382823,126.79,126.77,9.96389781]
[1741725585318,0.05382823,126.79,126.77,2.07379781]
[1741725585513,7.8898,126.78,126.77,0.04999781]
[1741725587809,26.07605952,126.79,126.77,0.04999781]
[1741725588009,7.94332823,126.79,126.77,0.04999781]
[1741725589010,7.8898,126.78,126.77,0.04999781]
[1741725590810,7.8898,126.78,126.77,9.781e-05]
[1741725593215,7.8898,126.78,126.69,18.13273129]
[1741725593216,18.13273129,126.78,126.66,86.42836923]
[1741725593421,7.8946,126.71,126.66,86.42836923]
[1741725593613,18.13273129,126.74,126.68,31.54]
[1741725593920,33.6367,126.77,126.68,35.7283]
[1741725593921,18.13273129,126.73,126.68,35.7283]
[1741725594120,18.13273129,126.75,126.68,35.7283]
[1741725594422,0.05211512,126.73,126.71,7.8937]
[1741725594623,0.05211512,126.73,126.68,35.7283]
[1741725594816,0.05211512,126.73,126.71,0.06005278]
[1741725595013,0.05211512,126.73,126.71,31.60005278]
[1741725595723,0.05211512,126.73,126.72,7.8936]
[1741725596419,0.05211512,126.73,126.71,31.60005278]
[1741725596812,18.13273129,126.79,126.71,31.60005278]
[1741725597017,18.13273129,126.79,126.73,7.8924]
[1741725597213,18.13273129,126.77,126.71,31.54]
[1741725597618,7.8934,126.73,126.71,31.54]
[1741725597814,18.13273129,126.75,126.71,31.54]
[1741725598017,0.05054105,126.73,126.71,31.59369259]
[1741725598324,7.94394105,126.73,126.71,31.59369259]
[1741725598624,7.8936,126.72,126.71,31.59369259]
[1741725599329,7.94384105,126.73,126.71,31.59369259]
[1741725599624,0.05054105,126.73,126.71,0.05369259]
[1741725599825,7.8936,126.72,126.71,0.05369259]
[1741725600127,0.05054105,126.73,126.71,0.05369259]
[1741725600524,7.8936,126.72,126.71,0.05369259]
[1741725602528,7.94384105,126.73,126.71,0.05369259]
[1741725603126,7.8936,126.72,126.71,0.05369259]
[1741725603532,18.13273129,126.72,126.66,33.7009]
[1741725603823,18.13273129,126.72,126.66,2.1609]
[1741725604021,18.13273129,126.72,126.66,33.7009]
[1741725604330,7.8951,126.7,126.66,41.5978]
[1741725604732,0.0501575,126.69,126.67,0.05451335]
[1741725606429,18.13273129,126.68,126.67,0.05451335]
[1741725606627,26.02883129,126.68,126.67,0.05451335]
[1741725606826,18.13273129,126.68,126.67,0.05451335]